Cogmind - Beta 10.2 @@@ ROGUE MODE // 2021.02.17 @ 19:48:33 Player: tc Result: Destroyed by D-53 Grenadier with Mini Grenade Launcher Performance ------------- Evolutions (0) 0 Regions Visited (2) 400 Robots Destroyed (11) 55 Value Destroyed (229) 229 Prototype IDs (1) 20 Alien Tech Used (0) 0 Bonus (0) 0 TOTAL SCORE: 704 Bonus ------- None Cogmind --------- Core Integrity 0/250 Matter 264/300 Energy 100/100 System Corruption 0% Temperature Cool (0) Movement Walking (150) Ox1 Location -10/Mines Parts ------- > --- POWER (1) -------- (None) > --- PROPULSION (2) --- Aluminum Leg Aluminum Leg > --- UTILITY (2) ------ High-capacity Storage Unit Improved Signal Interpreter > --- WEAPON (2) ------- Assault Rifle Improved Assault Rifle > --- INVENTORY (12) --- Light Ion Engine Light Ion Engine Light Ion Engine Light Nuclear Core Aluminum Leg Aluminum Leg Aluminum Leg Aluminum Leg Improved Heat Sink Small Storage Unit Grenade Launcher Peak State ------------ > --- POWER ------------ Light Nuclear Core > --- PROPULSION ------- Aluminum Leg Aluminum Leg > --- UTILITY ---------- High-capacity Storage Unit Improved Signal Interpreter > --- WEAPON ----------- Light Assault Rifle Improved Assault Rifle > --- INVENTORY -------- Light Ion Engine Light Ion Engine Light Ion Engine Light Treads Aluminum Leg Aluminum Leg Heat Sink Small Storage Unit Assault Rifle Light Assault Rifle Grenade Launcher [Rating: 13] Favorites ----------- Power Light Ion Engine Engine Light Ion Engine Power Core Light Nuclear Core Propulsion Aluminum Leg Leg Aluminum Leg Utility Improved Signal Interpreter Storage High-capacity Storage Unit Processor Improved Signal Interpreter Weapon Light Assault Rifle Energy Gun Small Laser Ballistic Gun Light Assault Rifle Launcher Grenade Launcher Build | -11 -10 -10 ------- Run | Scr Mat Min Slots Evolved . | . . . Power . | . . . Propulsion . | . . . Utility . | . . . Weapon . | . . . Parts Attached 14 | 6 3 5 Power 2 | 1 . 1 Engine 1 | 1 . . Core 1 | . . 1 Reactor . | . . . Propulsion 2 | 2 . . Treads . | . . . Leg 2 | 2 . . Wheel . | . . . Hover . | . . . Flight . | . . . Utility 4 | 1 2 1 Device . | . . . Storage 3 | 1 1 1 Processor 1 | . 1 . Hackware . | . . . Protection . | . . . Artifact . | . . . Weapon 6 | 2 1 3 Energy Gun 1 | 1 . . Energy Cannon . | . . . Ballistic Gun 4 | 1 1 2 Ballistic Cannon . | . . . Launcher 1 | . . 1 Special Weapon . | . . . Impact Weapon . | . . . Slashing Weapon . | . . . Piercing Weapon . | . . . Special Melee Weapon . | . . . Unidentified Prototypes 1 | . 1 . Parts Lost 3 | . . 3 Power 1 | . . 1 Propulsion . | . . . Utility . | . . . Weapon 2 | . . 2 Highest Loss Streak 2 | . . 2 Average Slot Usage (%) 99 | . 99 99 Engine 8 | . 14 5 Core 5 | . . 8 Leg 28 | . 28 28 Storage 14 | . 15 14 Processor 13 | . 11 14 Energy Gun 4 | . 10 . Ballistic Gun 23 | . 17 27 Naked Turns . | . . . Heaviest Build 41 | 9 17 41 Greatest Support 20 | 20 20 20 Greatest Overweight (x) 2 | 2 . 2 Average Overweight (x) . | . . 1 Largest Inventory Capacity 12 | 6 10 12 Average Capacity 9 | 5 8 11 Most Carried 12 | 6 8 12 Average Carried 8 | 3 6 9 Final Capacity 12 | 6 8 12 Final Carried 11 | 4 7 11 Class Distribution -------------------- 100% | Mutant Dominant Class ---------------- Mutant | -10/Materials Mutant | -10/Mines Resources | -11 -10 -10 ----------- Run | Scr Mat Min Matter Collected 419 | 246 51 122 Remotely . | . . . Salvage Created 283 | . 53 230 Parts 24 | . 5 19 Haulers Intercepted . | . . . Recyclers Shooed 1 | . 1 . Parts Field Recycled . | . . . Retrieved Matter . | . . . Parts Self-Destructed . | . . . Prevented . | . . . Kills | -11 -10 -10 ------- Run | Scr Mat Min Combat Hostiles Destroyed 10 | . 3 7 Guns 10 | . 3 7 Classes Destroyed 3 | . 1 2 Tunneler 1 | . . 1 Swarmer 6 | . 3 3 Grunt 4 | . . 4 Best Kill Streak 5 | . 3 5 Combat Bots Only 4 | . 3 4 Max Kills in Single Turn 2 | . 1 2 Gunslinging . | . . . Exploded . | . . . Melee . | . . . Uniques/NPCs Destroyed . | . . . Combat | -11 -10 -10 -------- Run | Scr Mat Min Damage Taken 711 | . 51 660 Core 252 | . 6 246 Absorbed by Shields . | . . . Core Remaining (%) 100 | 100 . . Volleys Fired 37 | . 7 30 Largest 2 | . 2 2 Hottest 60 | . 60 43 Shots Fired 70 | . 13 57 Gun 70 | . 13 57 Cannon . | . . . Launcher . | . . . Special . | . . . Kinetic 64 | . 7 57 Thermal 6 | . 6 . Explosive . | . . . Electromagnetic . | . . . Robot Hit Streak 7 | . 5 7 Robot Miss Streak 4 | . 2 4 Penetration Max . | . . . Secondary Targets 2 | . 2 . Max Gunslinging Chain 1 | . 1 . Shots Hit Robots 46 | . 8 38 Core Hits 21 | . 4 17 Critical Hits . | . . . Critical Kills . | . . . Critical Parts Destroyed . | . . . Melee Attacks . | . . . Impact . | . . . Slashing . | . . . Piercing . | . . . Sneak Attacks . | . . . Combat Hostiles . | . . . Follow-up Attacks . | . . . Damage Inflicted 552 | . 74 478 Guns 552 | . 74 478 Cannons . | . . . Explosions . | . . . Melee . | . . . Ramming . | . . . Kinetic 507 | . 29 478 Thermal 45 | . 45 . Explosive . | . . . Electromagnetic . | . . . Impact . | . . . Slashing . | . . . Piercing . | . . . Highest Corruption . | . . . Average Corruption . | . . . Corruption Purged . | . . . Overload Shots . | . . . Overflow Damage . | . . . Projectiles . | . . . Explosions . | . . . Melee . | . . . Knockbacks . | . . . Impact . | . . . Kinetic . | . . . Secondary . | . . . Self-Inflicted Damage . | . . . Shots . | . . . Rammed . | . . . Targets Rammed . | . . . Kicked . | . . . Crushed . | . . . Highest Temperature 40 | . 40 36 Average Temperature 9 | . 18 7 Received Heat Transfer 105 | . . 105 Siege Activations . | . . . Robots Corrupted . | . . . Combat Hostiles . | . . . Parts Fried . | . . . Impact Corruptions . | . . . Robots Melted . | . . . Combat Hostiles . | . . . Parts Melted . | . . . Heat Transferred 100 | . 100 . Parts Sabotaged . | . . . Parts Stolen . | . . . Parts Stripped . | . . . Power Chain Reactions . | . . . Missiles Intercepted . | . . . Alert | -11 -10 -10 ------- Run | Scr Mat Min Peak Influence 222 | . 70 222 Initial 27 | . . 27 Average 87 | . 43 128 Maximum Alert Level 1 | . . 1 Low Security (%) 91 | 100 100 83 Level 1 8 | . . 16 Level 2 . | . . . Level 3 . | . . . Level 4 . | . . . Level 5 . | . . . High Security . | . . . Max Security . | . . . Squads Dispatched 1 | . 1 . Investigation . | . . . Extermination . | . . . Reinforcement 1 | . 1 . Assault . | . . . Garrison . | . . . Intercept . | . . . Construction Impeded . | . . . Haulers Reinforced . | . . . Stealth | -11 -10 -10 --------- Run | Scr Mat Min Distress Signals . | . . . Communications Jammed . | . . . Distress Signals . | . . . Times Spotted 17 | . 4 13 Peak Tracking Total 6 | . 3 6 Tactical Retreats 2 | . . 2 Traps | -11 -10 -10 ------- Run | Scr Mat Min Traps Triggered 1 | . 1 . Indirectly . | . . . Trap Hack Attempts . | . . . Triggered . | . . . Disarmed . | . . . Reprogrammed . | . . . Reused . | . . . Traps Extracted . | . . . Installed . | . . . Triggered . | . . . Machines | -11 -10 -10 ---------- Run | Scr Mat Min Machines Disabled . | . . . Max in Single Turn . | . . . Machines Sabotaged . | . . . Garrisons Compromised . | . . . Overloaded Fab Kills . | . . . Fab Network Shutdowns . | . . . Hacking | -11 -10 -10 --------- Run | Scr Mat Min Machines Accessed 2 | . 2 . Terminals 2 | . 2 . Fabricators . | . . . Repair Stations . | . . . Recycling Units . | . . . Scanalyzers . | . . . Garrison Access . | . . . Total Hacks 5 | . 5 . Successful 2 | . 2 . Failed 3 | . 3 . Catastrophic 1 | . 1 . Database Lockouts . | . . . Manual . | . . . Terminals 5 | . 5 . Fabricators . | . . . Repair Stations . | . . . Recycling Units . | . . . Scanalyzers . | . . . Garrison Access . | . . . Terminal Hacks 2 | . 2 . Record 2 | . 2 . Fabricator Hacks . | . . . Repair Station Hacks . | . . . Recycling Unit Hacks . | . . . Scanalyzer . | . . . Garrison Access Hacks . | . . . Unauthorized Hacks . | . . . Terminals . | . . . Fabricators . | . . . Repair Stations . | . . . Recycling Units . | . . . Scanalyzers . | . . . Garrison Access . | . . . Data Cores Recovered . | . . . Used . | . . . Hacking Detections 1 | . 1 . Full Trace Events 1 | . 1 . Feedback Events . | . . . Feedback Blocked . | . . . Robot Schematics Acquired . | . . . Robots Built . | . . . Matter . | . . . Time . | . . . Total Robot Build Rating . | . . . Part Schematics Acquired . | . . . Parts Built . | . . . Matter . | . . . Time . | . . . Total Part Build Rating . | . . . Parts Repaired . | . . . Time . | . . . Parts Recycled . | . . . Recycled Matter . | . . . Retrieved Matter . | . . . Retrieved Components . | . . . Parts Scanalyzed . | . . . Part Schematics Acquired . | . . . Parts Damaged . | . . . Bothacking | -11 -10 -10 ------------ Run | Scr Mat Min Used RIF Installer . | . . . Robots Hacked . | . . . Non-combat . | . . . Combat . | . . . Robot Hacks Applied . | . . . Relay Couplers Released . | . . . Robots Rewired . | . . . Allies Hacked . | . . . Hacks Repelled . | . . . Allies | -11 -10 -10 -------- Run | Scr Mat Min Total Allies . | . . . Largest Group . | . . . Highest-Rated Group . | . . . Highest-Rated Ally . | . . . Total Orders . | . . . Ally Attacks . | . . . Total Damage . | . . . Kills . | . . . Allies Corrupted . | . . . Allies Melted . | . . . Intel | -11 -10 -10 ------- Run | Scr Mat Min Robot Analysis Total . | . . . Derelict Logs Recovered . | . . . Drone Launches . | . . . Drone Recoveries . | . . . Exploration | -11 -10 -10 ------------- Run | Scr Mat Min Turns Passed 867 | 73 313 481 Spaces Moved 504 | 53 238 213 Core 31 | 31 . . Treads . | . . . Legs 473 | 22 238 213 Wheels . | . . . Hover . | . . . Flight . | . . . Fastest Speed 50 | 50 120 120 Average Speed 138 | 109 120 165 Slowest Speed 180 | 150 120 180 Overloaded Moves . | . . . Propulsion Burnouts . | . . . Robots Hopped . | . . . Cave-ins Triggered . | . . . Exploration Rate (%) 31 | 5 42 48 Regions Visited 2 Branch Regions 1 Pre-discovered Areas . | . . . Known Exits Taken 1 | . 1 . Unknown Exits Taken 1 | 1 . . Scrap Searched 1 | . . 1 Spaces Dug . | . . . Terrain Destroyed . | . . . Melee . | . . . Projectile . | . . . AOE . | . . . Terrain Rammed . | . . . Walls Destroyed . | . . . Machines Disabled . | . . . Actions | -11 -10 -10 --------- Run | Scr Mat Min Total 611 | 68 254 289 Wait 29 | . . 29 Move 502 | 52 237 213 Hop . | . . . Pick Up 25 | 10 6 9 Fast Attach . | . . . Attach 10 | 6 2 2 Detach . | . . . Swap 4 | . 1 3 Drop 4 | . 1 3 Fire 37 | . 7 30 Melee . | . . . Ram . | . . . Kick . | . . . Crush . | . . . Escape Stasis . | . . . Rewire . | . . . Trap . | . . . Miscellaneous . | . . . Route ------- -11/Scrapyard -10/Materials (discovered 2 exits: *Mat / *Min) -10/Mines History --------- Turn | Location | Event 9 | -11/Scrapyard | Discovered new exit (range 16) 74 | -11/Scrapyard | Entered Materials 152 | -10/Materials | Discovered new exit (range 8) 282 | -10/Materials | Discovered new exit (range 11) 309 | -10/Materials | Identified exit to Materials 327 | -10/Materials | Build established: Mutant 386 | -10/Materials | Identified exit to Mines 387 | -10/Materials | Entered Mines 554 | -10/Mines | Met a Derelict bent on vengeance 756 | -10/Mines | Assembled infested the area 761 | -10/Mines | Assisted by a Guerilla fighting off Assembled 858 | -10/Mines | Core integrity fell below 50% 864 | -10/Mines | Core integrity fell below 20% 868 | -10/Mines | Destroyed by D-53 Grenadier with Mini Grenade Launcher Last Messages --------------- G-34 Mercenary destroyed. Acquired Aluminum Leg. Acquired 52 matter. Acquired Lgt. Nuclear Core. Acquired Aluminum Leg. ALERT: Infestation in the mines, dispatching Demolisher response squad. A derelict emerges from the shadows: "You need to get out of here! I've been tracking a group of Assembled to figure out where they're coming from, and they're closing on this area, come on!" K-01 Serf collects debris. 3D-GRB(h): "I'll hold them off! Go on ahead or try to find another way!" HV Slug penetrates Wall. K-01 Serf collects debris. 3D-GRB(h) system corrupted by crushing effect. 3D-GRB(h) system terminally corrupted. Lgt. Assault Rifle destroyed. The unstable cave ceiling collapses. Lgt. Nuclear Core destroyed. Destroyed Shock Absorption System. The unstable cave ceiling collapses. Map ----- +----------------------------------------------------+ | | | | | | | | | | | | | | | | | ?????????????????????????????????????????????????? | | ?????????????????????????????????????????????????? | | ????????????????#######??????????????????????????? | | ???????????????## ######?????????????????????? | | ?????????####??# """ ##????????????????????? | | ?????????# ### """ #????????????????????? | | ?????????# """ #????????????????????? | | ?????????# #?????????????????????? | | ?????????# ### ##?????????????????????# | | ?????????# ##?## #?????????????????????## | | ?????????# #???# #??????###???????????## | | ?????????## #??# #?????## #????????### | | ??????????## #### ###???# ##???#### | | ???????????## ### ##??# ##### # | | ????????????##### ### ##??# ## | | ????????????????###### #??## """ ##? | | ???????????????????## # #???## """ #?? | | ??????????????????## @ ####### """ #?? | | ??????????????????# ### ##?? | | ?????????????????# # #####??? | | ?????????????????# d ## ##??????? | | ??????????????? r ##??????? | | ????????????? %%% %= #??????? | | ???????????? % ##### ## #??????? | | ????????????## ????# ### #??????? | | ?????????????## # ????# #?## ##?????? | | ??????????????# #????# #?## #?????? | | ??????????????## !# ?????## ###?# #?????? | | ???????????????## ##??????# #???# #?????? | | ????????????????### ????????# #???# = ##?????? | | ??????????????????# ?????????# ##### !% ##??????? | | ??????????????????##?????????# = #???????? | | ?????????????????????????????######## ##??????? | | ??????????????????????????????####??## ##?????? | | ?????????????????????????????## ##??## ##????? | | ????????????????????????????## ###### ##???? | | ????????????????????????????# !=%### ##??? | | ???????????????????????????# ##*#?# #??? | | ??????????????????????????# ###=### #### | | ?????????????????????????# ###?#%## | | ?????????????????????????# ###### ## | | ?????????????????????????## #### % ### ### | +----------------------------------------------------+ Best States ------------- Heat Dissipation 25 Energy Generation 14 Energy Capacity 160 Matter Stores 300 Matter Capacity 300 Sight Range 16 Terrain Scan Density 10 Evasion (%) 50 Item Schematics ----------------- None Robot Schematics ------------------ None Fabricated ------------ Nothing Alien Tech Used ----------------- None Achievements -------------- None Challenges ------------ None Game ------ Seed QuantumIntegratedProjector Manual? 0 Play Time 00:10:54 Cumulative 7.5 hours Start 2021.02.17 @ 19:37:49 End 2021.02.17 @ 19:48:33 Sessions 1 Manual Loads 0 Difficulty Rogue Special Mode None Game No. 11 Rogue 11 Adventurer 0 Explorer 0 Win Type - Total 0 Types 0/0/0/0/0/0/0/0/0 Lore% 11 Gallery% 13 Achievement% 12 Wizard Run 0 Options --------- ASCII 0 Keyboard 0 Movement Numpad Keybinds 0 Fullscreen 1 Font 12/Smallcaps Map View 83x54 Tactical HUD 0 Map Filters NONE Filters NONE Steam 1 RUN: e43ff56a-f316-4392-ae1f-727124c8e324